bitfinex/quotes_ETHUSD_20241130
["timestamp","ask_amount","ask_price","bid_price","bid_amount"]
[1732952833354,0.65,3712.9,3711.7,0.02154415]
[1732952833355,0.9076,3712.8,3711.7,0.02154415]
[1732952835474,1.0076,3712.8,3711.7,0.02154415]
[1732952836353,0.9076,3712.8,3711.7,0.02154415]
[1732952838507,1.0076,3712.8,3711.7,0.02154415]
[1732952839694,0.9076,3712.8,3711.7,0.02154415]
[1732952840110,0.8489,3713.5,3711.9,0.2692]
[1732952840413,0.8489,3713.5,3712.6,0.2692]
[1732952840616,0.8489,3712.7,3712.6,0.2692]
[1732952841266,0.8489,3712.7,3711.7,0.02154415]
[1732952843789,0.8489,3711.9,3711.7,0.02154415]
[1732952844481,0.8489,3711.1,3710.4,0.2692]
[1732952844684,0.8489,3711.1,3710.0,0.2692]
[1732952844885,0.8489,3711.1,3710.5,0.2692]
[1732952845776,0.8489,3711.1,3710.0,3.2692]
[1732952845984,0.8489,3711.1,3710.2,0.2692]
[1732952846887,0.55,3711.8,3711.1,2.69461]
[1732952847090,0.55,3711.8,3711.7,5.69418]
[1732952849975,1.3989,3711.8,3711.7,5.69418]
[1732952857587,1.3989,3711.8,3711.7,2.69418]
[1732952857786,1.3989,3711.8,3710.1,2.6953]
[1732952857787,0.55,3711.6,3711.2,2.69447]
[1732952858017,1.4645,3711.4,3711.3,2.69441]
[1732952858830,1.4645,3711.4,3711.3,5.69441]
[1732952859743,1.4645,3711.4,3711.1,2.6946]
[1732952859744,0.8242,3711.3,3711.1,2.6946]
[1732952859939,1.3742,3711.3,3711.2,2.69454]
[1732952860125,1.56998893,3711.3,3711.2,2.69454]
[1732952861131,1.56998893,3711.3,3711.2,5.69454]
[1732952863732,1.60367649,3711.3,3711.2,5.69454]
[1732952864031,1.56998893,3711.3,3711.2,2.69454]
[1732952864589,0.74578893,3711.3,3710.7,3.0]
[1732952864802,0.74578893,3711.3,3710.9,5.69476]
[1732952864803,0.55,3711.0,3710.9,5.69476]
[1732952864998,1.3742,3711.0,3710.9,5.69476]
[1732952865199,1.53456803,3711.0,3710.9,5.69476]
[1732952868301,1.3742,3711.0,3710.9,5.69476]
[1732952878340,1.3742,3711.0,3710.6,2.69496]
[1732952878341,0.8653,3710.7,3710.6,2.69496]
[1732952878544,1.4153,3710.7,3710.6,2.69496]
[1732952879713,1.4153,3710.7,3710.6,5.69496]
[1732952879946,1.56019938,3710.7,3710.6,5.69496]
[1732952883807,1.01019938,3710.7,3710.6,5.69496]
[1732952884007,0.8653,3710.7,3710.6,5.69496]
[1732952885003,1.4153,3710.7,3710.6,5.69496]
[1732952886208,0.53109607,3710.8,3710.6,5.69496]
[1732952886401,0.19578893,3711.3,3710.3,3.0]
[1732952886402,0.8653,3710.6,3710.3,3.0]
[1732952886674,0.8653,3710.4,3710.0,2.69536]
[1732952886845,0.03369815,3710.3,3710.1,2.6953]
[1732952887003,0.03369815,3710.3,3710.2,2.69527]
[1732952887208,0.03369815,3710.3,3709.8,2.69553]
[1732952887410,0.03369815,3710.3,3709.0,0.8913]
[1732952887411,0.8653,3710.2,3710.1,2.69534]
[1732952887656,0.55,3710.2,3710.1,2.69534]
[1732952887835,0.54085529,3710.7,3710.1,2.69534]
[1732952887836,0.55,3710.4,3710.1,2.69534]
[1732952888044,0.55,3710.4,3710.3,2.69519]
[1732952888203,0.55,3710.6,3710.5,2.69505]
[1732952888404,0.74561553,3710.6,3710.5,2.69505]
[1732952888605,0.8653,3710.8,3710.7,5.6949]
[1732952889351,0.03369076,3711.5,3710.7,5.6949]
[1732952889352,0.03369076,3711.5,3711.4,2.6944]
[1732952889547,0.25211301,3711.5,3711.4,2.6944]
[1732952889753,2.19451912,3711.5,3711.4,2.6944]
[1732952890342,1.64451912,3711.5,3711.4,2.6944]
[1732952890561,1.81233979,3711.5,3711.4,2.6944]
[1732952891961,2.36233979,3711.5,3711.4,2.6944]
[1732952896487,0.8384,3711.3,3711.2,2.69451]
[1732952896640,0.55,3710.9,3710.6,2.69493]
[1732952896977,0.55,3710.6,3710.2,2.69521]
[1732952897127,0.55,3710.4,3710.2,2.69521]
[1732952897322,0.78090726,3710.3,3710.2,2.69521]
[1732952897545,1.3884,3710.2,3710.0,2.69539]
[1732952897764,0.55,3710.0,3709.8,2.69555]
[1732952897932,0.55,3709.8,3709.1,5.39214]
[1732952898276,0.58370488,3709.8,3708.7,2.69636]
[1732952898494,0.58370488,3709.8,3709.6,2.69564]
[1732952898768,0.55,3709.6,3709.5,2.69578]
[1732952899179,0.55,3709.6,3708.9,2.69621]
[1732952899360,0.58370623,3709.6,3708.9,2.69621]
[1732952899555,0.55,3709.6,3709.5,2.69578]
[1732952900462,0.55,3709.6,3709.5,5.69578]
[1732952901259,1.3884,3709.6,3709.3,2.69587]
[1732952901570,0.55,3709.4,3709.3,2.69587]
[1732952902845,0.55,3709.4,3709.3,5.69587]
[1732952903031,0.8384,3710.1,3709.8,5.69556]
[1732952903233,0.8384,3710.1,3710.0,2.69541]
[1732952903671,0.53866877,3710.2,3710.1,5.69534]
[1732952903854,0.70158973,3710.2,3710.1,5.69534]
[1732952904432,0.73528609,3710.2,3710.1,5.69534]
[1732952904737,0.70158973,3710.2,3710.1,5.69534]
[1732952905338,1.25158973,3710.2,3710.1,5.69534]
[1732952906855,1.08866877,3710.2,3710.1,5.69534]
[1732952908088,0.55,3710.2,3710.1,5.69534]
[1732952914542,0.55,3710.2,3710.1,6.56764]
[1732952915543,0.55,3710.2,3710.1,5.69534]
[1732952916594,0.58369537,3710.2,3710.1,5.69534]
[1732952917771,0.55,3710.5,3710.4,2.69512]
[1732952917942,0.79899425,3710.5,3710.4,2.69512]
[1732952918945,1.68249425,3710.5,3710.4,2.69512]
[1732952919146,0.55,3710.2,3709.8,3.0]
[1732952919384,0.55,3710.0,3709.3,2.69592]
[1732952919595,1.4335,3709.8,3709.4,2.69579]
[1732952919773,1.4335,3709.8,3708.6,0.8723]
[1732952919774,0.55,3709.6,3708.6,0.8723]
[1732952920092,0.55,3709.7,3709.5,2.69578]
[1732952920294,0.55,3709.7,3709.6,2.69568]
[1732952923366,0.69335,3710.1,3710.0,5.69541]
[1732952925956,0.69335,3710.1,3710.0,3.0]
[1732952926151,0.69335,3710.1,3710.0,2.69541]
[1732952929600,0.69335,3710.1,3709.9,2.69547]
[1732952930183,0.03369849,3710.0,3709.7,2.69563]
[1732952930383,0.76502435,3709.9,3709.7,2.69563]
[1732952930723,0.55,3709.8,3709.7,2.69563]
[1732952931704,0.55,3709.8,3709.7,5.69563]
[1732952932770,0.55,3709.8,3709.7,4.555636]
[1732952932960,0.55,3709.8,3709.6,3.0]
[1732952933361,0.55,3709.7,3709.6,5.6957]
[1732952933810,0.55,3709.8,3709.6,5.6957]
[1732952933988,0.55,3709.8,3709.7,2.69563]
[1732952938227,0.55,3709.6,3709.5,2.69576]
[1732952938412,0.76942244,3709.6,3709.5,2.69576]
[1732952938615,0.55,3709.8,3709.5,2.69576]
[1732952938800,0.55,3709.8,3709.7,2.69559]
[1732952943527,0.58370072,3709.8,3709.7,2.69559]
[1732952943739,0.55,3709.8,3709.7,2.69559]
[1732952944135,0.55,3709.8,3709.5,2.69576]
[1732952944289,0.55,3709.6,3709.5,2.69576]
[1732952946295,0.55,3709.6,3708.8,0.8735]
[1732952946445,0.58370735,3709.5,3709.4,2.6958]
[1732952946749,0.55,3709.5,3709.4,2.6958]
[1732952946922,0.55,3709.6,3709.5,2.69577]
[1732952949151,0.53969503,3710.2,3709.6,2.6957]
[1732952949335,0.2523938,3710.1,3710.0,2.69541]
[1732952949520,0.53969503,3710.2,3710.1,2.69534]
[1732952951162,1.08969503,3710.2,3710.1,2.69534]
[1732952951482,0.9238,3710.6,3710.5,2.69505]
[1732952951778,0.9238,3710.6,3710.4,2.69512]
[1732952951779,1.1068839,3710.6,3710.2,2.69526]
[1732952952432,1.1068839,3710.6,3710.4,2.69511]
[1732952952639,0.55,3710.5,3710.4,2.69511]
[1732952953798,0.55,3710.5,3710.1,2.69528]
[1732952953942,0.55,3710.3,3710.1,2.69528]
[1732952954137,0.55,3710.3,3709.7,3.0]
[1732952954138,0.58369636,3710.2,3709.7,5.69561]
[1732952954381,0.55,3709.9,3709.8,2.69556]
[1732952954543,0.73013893,3709.9,3709.8,2.69556]
[1732952954969,0.6964399,3709.9,3709.6,2.69564]
[1732952955360,0.6964399,3709.9,3709.7,2.69563]
[1732952955679,0.6964399,3709.9,3709.8,2.69556]
[1732952957938,1.22466995,3709.9,3709.8,2.69556]
[1732952960584,1.22466995,3709.9,3709.6,2.6957]
[1732952960585,1.2583699,3709.9,3709.6,2.69566]
[1732952960784,0.55,3709.7,3709.6,2.69566]
[1732952962450,0.55,3709.7,3709.5,2.69577]
[1732952963185,0.55,3709.7,3709.2,2.69598]
[1732952963342,0.55,3709.5,3708.8,2.69627]
[1732952963547,0.55,3709.3,3708.9,2.6962]
[1732952963860,0.55,3709.1,3708.9,2.6962]
[1732952964287,0.55,3709.1,3708.6,2.69637]
[1732952964471,0.55,3708.9,3708.6,2.69637]
[1732952964992,0.55,3708.7,3708.6,2.69637]
[1732952965680,0.20351042,3709.4,3708.4,2.69657]
[1732952965681,0.55,3708.5,3708.4,2.69657]
[1732952968374,0.55,3708.5,3708.4,2.64657]
[1732952972831,0.55062051,3709.0,3708.4,2.64657]
[1732952972832,0.55062051,3709.0,3708.9,6.65971]
[1732952973909,0.20351042,3709.4,3709.3,2.69592]
[1732952974124,0.55,3709.4,3709.3,2.69592]
[1732952974606,0.55,3709.4,3708.9,3.9635]
[1732952974607,0.9613,3709.8,3709.7,2.69563]
[1732952975390,0.25168349,3710.2,3709.5,0.9635]
[1732952975579,0.99500126,3710.3,3710.1,2.69532]
[1732952975782,0.9613,3710.3,3710.1,2.69532]
[1732952975993,0.9613,3710.3,3710.0,2.69541]
[1732952976206,0.9613,3710.3,3709.9,2.69548]
[1732952976411,0.53005677,3710.2,3709.9,2.69548]
[1732952976606,0.14913568,3710.1,3710.0,2.69541]
[1732952977375,0.73283265,3710.1,3710.0,2.69541]
[1732952978307,0.69913568,3710.1,3710.0,2.69541]
[1732952980622,0.73283255,3710.1,3710.0,2.69541]
[1732952981490,0.69913568,3710.1,3710.0,2.69541]
[1732952984931,0.40270567,3710.9,3709.8,5.69553]
[1732952984932,1.08519327,3710.7,3710.6,6.65848]
[1732952985227,0.53640589,3710.7,3710.6,5.69498]
[1732952986825,0.53640589,3710.7,3710.6,6.66158]
[1732952988346,0.53640589,3710.7,3710.6,5.69498]
[1732952989961,0.53640589,3710.7,3710.6,6.66158]
[1732952990243,0.53640589,3710.7,3710.6,5.69498]
[1732952991255,0.55,3710.6,3710.5,2.69505]
[1732952991748,0.55,3710.6,3710.4,2.69506]
[1732952992207,0.55,3710.6,3710.1,3.0]
[1732952992408,0.55,3710.6,3710.5,2.69505]
[1732952992605,0.55,3710.6,3710.3,2.69518]
[1732952992851,0.55,3710.4,3710.3,2.69518]
[1732952996361,0.55,3710.6,3710.5,2.69505]
[1732952997454,0.49934872,3710.6,3710.5,2.69505]
[1732952999457,0.53640589,3710.7,3710.6,5.69498]
[1732953000313,0.53640589,3710.7,3710.6,6.61988]
[1732953002758,0.53640589,3710.7,3710.6,5.69498]
[1732953003446,0.55,3710.6,3709.8,0.2694]
[1732953003646,1.48720589,3710.7,3709.6,0.9249]
[1732953003647,0.78741609,3710.5,3710.4,2.69512]
[1732953003851,0.75372059,3710.5,3710.4,2.69512]
[1732953004104,0.75372059,3710.5,3709.6,0.9249]
[1732953004295,0.58369542,3710.4,3710.0,2.6954]
[1732953004587,0.55,3710.4,3710.3,2.69519]
[1732953004758,0.77409265,3710.4,3710.3,2.69519]
[1732953005164,0.55,3710.6,3710.3,2.69519]
[1732953005406,0.55,3710.6,3710.5,2.69505]
[1732953006552,0.55,3710.6,3709.7,3.2694]
[1732953006553,0.58369172,3710.6,3709.7,3.0]
[1732953006878,1.11349197,3710.6,3710.2,2.69522]
[1732953007187,0.55,3710.4,3710.2,2.69522]
[1732953007550,0.55,3710.4,3710.0,2.6954]
[1732953007757,0.55,3710.4,3710.2,2.69526]
[1732953010486,0.55,3710.4,3710.3,2.69519]
[1732953014457,0.52980025,3710.6,3710.4,2.69512]
[1732953014458,0.55,3710.5,3710.4,2.69512]
[1732953017709,0.80670061,3710.5,3710.4,2.69512]
[1732953019573,0.03369193,3711.3,3710.4,2.69512]
[1732953019574,0.03369193,3711.3,3711.2,2.69454]
[1732953019803,0.9356,3711.5,3711.2,2.69454]
[1732953019967,0.9356,3711.5,3710.9,2.69473]
[1732953020171,0.5346913,3711.3,3711.2,2.69454]
[1732953021199,0.5346913,3711.3,3710.6,2.69493]
[1732953021444,1.22134879,3711.2,3710.2,2.69527]
[1732953021608,0.99504401,3711.1,3710.6,2.69498]
[1732953022012,0.55,3710.9,3710.6,2.69498]
[1732953022311,0.55,3710.7,3710.6,2.69498]
[1732953022686,0.55,3710.5,3710.2,2.6952]
[1732953022891,0.55,3710.3,3710.0,2.69536]
[1732953023086,0.58369444,3710.2,3710.1,2.69534]
[1732953023292,0.55,3710.1,3709.9,2.69545]
[1732953023610,0.55,3710.1,3710.0,2.69541]
[1732953024984,0.96929427,3710.6,3710.0,2.69541]
[1732953024985,0.55,3710.4,3710.0,2.69541]
[1732953025246,0.55,3710.2,3710.1,2.69533]
[1732953027594,1.08730569,3710.2,3710.1,2.69533]
[1732953028023,0.40322548,3711.1,3711.0,96.81190801]
[1732953028202,1.25132431,3711.1,3711.0,95.06876357]
[1732953028723,0.84809883,3711.1,3711.0,95.06876357]
[1732953028964,0.25202367,3711.1,3711.0,95.06876357]
[1732953029633,0.25198699,3711.1,3711.0,95.06876357]
[1732953029990,0.80198699,3711.1,3711.0,95.06876357]
[1732953030791,1.33589479,3711.1,3711.0,95.06876357]
[1732953031000,2.26299479,3711.1,3711.0,95.06876357]
[1732953031310,2.75873427,3711.1,3711.0,95.06876357]
[1732953032290,2.75873427,3711.1,3711.0,95.12318545]
[1732953035316,2.26299479,3711.1,3711.0,95.12318545]
[1732953037655,2.26299479,3711.1,3711.0,95.12318545]
[1732953038713,2.66662558,3711.1,3711.0,95.12318545]
[1732953038915,2.26299479,3711.1,3711.0,95.12318545]
[1732953039350,5.36123558,3711.1,3711.0,95.12318545]
[1732953039556,5.36123558,3711.1,3711.0,90.39614268]
[1732953039854,5.38167612,3711.1,3711.0,83.20377027]
[1732953040643,5.38203405,3711.1,3711.0,81.419239]
[1732953040843,5.8025313,3711.1,3711.0,81.419239]
[1732953041150,7.48526191,3711.1,3711.0,80.426089]
[1732953041350,7.46482137,3711.1,3711.0,80.426089]
[1732953041919,7.04432412,3711.1,3711.0,75.52686659]
[1732953042231,7.60523433,3711.1,3711.0,74.04873563]
[1732953042448,8.19659351,3711.1,3711.0,70.22629967]
[1732953042633,20.00142859,3711.1,3711.0,59.53801683]
[1732953042943,22.04542706,3711.1,3711.0,44.56826205]
[1732953043150,16.31042706,3711.1,3711.0,44.21848508]
[1732953043455,16.55615254,3711.1,3711.0,44.21848508]
[1732953043651,16.1360638,3711.1,3711.0,44.21848508]
[1732953043820,14.44159351,3711.1,3711.0,44.21848508]
[1732953044226,14.44085431,3711.1,3711.0,44.21848508]
[1732953044423,14.44085431,3711.1,3711.0,44.1640632]
[1732953044628,14.44085431,3711.1,3711.0,44.21942196]
[1732953045668,14.57860219,3711.1,3711.0,44.21942196]
[1732953045870,14.44085431,3711.1,3711.0,44.21942196]
[1732953046751,6.5900785,3711.1,3711.0,44.21942196]
[1732953046930,6.86144096,3711.1,3711.0,44.21942196]
[1732953047371,7.28146437,3711.1,3711.0,44.21942196]
[1732953047672,8.72377689,3711.1,3711.0,44.1640632]
[1732953047828,8.8974467,3711.1,3711.0,44.21942196]
[1732953048029,7.02992246,3711.1,3711.0,44.21942196]
[1732953048231,6.92992246,3711.1,3711.0,44.21942196]
[1732953048461,8.62404508,3711.1,3711.0,44.21942196]
[1732953048671,6.92992246,3711.1,3711.0,44.21942196]
[1732953048976,6.92992246,3711.1,3711.0,44.1640632]
[1732953049270,6.76136582,3711.1,3711.0,44.21918239]
[1732953049433,6.86136582,3711.1,3711.0,44.21918239]
[1732953049636,6.76136582,3711.1,3711.0,44.21918239]
[1732953050169,9.18946188,3711.1,3711.0,44.21918239]
[1732953050478,8.62440435,3711.1,3711.0,44.1640632]
[1732953050627,5.79979764,3711.1,3711.0,44.21918239]
[1732953050835,4.64625724,3711.1,3711.0,44.21918239]
[1732953051028,3.51675582,3711.1,3711.0,44.21918239]
[1732953051250,2.11616917,3711.1,3711.0,44.21918239]
[1732953051455,1.18906917,3711.1,3711.0,44.21918239]
[1732953051673,0.5339078,3711.1,3711.0,44.21918239]
[1732953051846,1.18929435,3711.1,3711.0,44.21918239]
[1732953052154,2.30768735,3711.1,3711.0,44.21918239]
[1732953052886,1.6523008,3711.1,3711.0,44.21918239]
[1732953053052,2.0556323,3711.1,3711.0,44.21918239]
[1732953053574,2.30771448,3711.1,3711.0,44.21918239]
[1732953054081,1.6523008,3711.1,3711.0,44.21918239]
[1732953054773,2.3076481,3711.1,3711.0,44.21918239]
[1732953058663,5.02269864,3711.1,3711.0,43.49014375]
[1732953058866,7.28276854,3711.1,3711.0,43.49014375]
[1732953059101,7.87139773,3711.1,3711.0,43.49014375]
[1732953059300,9.56587962,3711.1,3711.0,43.49014375]
[1732953059506,9.24578519,3711.1,3711.0,42.93779328]
[1732953059707,9.41926674,3711.1,3711.0,42.33099693]
[1732953060019,9.25072858,3711.1,3711.0,42.33099693]
[1732953060235,9.49731017,3711.1,3711.0,42.33099693]
[1732953060376,7.80297446,3711.1,3711.0,42.33099693]
[1732953060572,7.70297446,3711.1,3711.0,42.33099693]
[1732953060803,7.28276854,3711.1,3711.0,42.33099693]
[1732953061222,8.41216759,3711.1,3711.0,42.33099693]
[1732953061880,8.41216759,3711.1,3711.0,42.27587774]
[1732953062113,8.41216759,3711.1,3711.0,42.33101842]
[1732953062316,4.58811765,3711.1,3711.0,42.33101842]
[1732953062617,2.3076481,3711.1,3711.0,42.33101842]
[1732953063235,1.7576481,3711.1,3711.0,42.33101842]
[1732953064529,2.3076481,3711.1,3711.0,42.33101842]
[1732953070857,2.3076481,3711.1,3711.0,43.22961842]
[1732953071146,1.90456836,3711.1,3711.0,43.22961842]
[1732953074715,1.90457122,3711.1,3711.0,43.22961842]
[1732953076145,2.3082039,3711.1,3711.0,43.22961842]
[1732953078321,2.308338,3711.1,3711.0,43.22961842]
[1732953080025,2.056016,3711.1,3711.0,43.22961842]
[1732953080262,2.71206945,3711.1,3711.0,43.22961842]
[1732953082227,2.30835862,3711.1,3711.0,43.22961842]
[1732953083646,1.90464342,3711.1,3711.0,43.22961842]
[1732953084854,1.35464342,3711.1,3711.0,45.92430842]
[1732953086476,1.1023008,3711.1,3711.0,45.92430842]
[1732953086982,0.568393,3711.1,3711.0,45.92430842]
[1732953087285,0.568393,3711.1,3711.0,48.65014389]
[1732953087950,0.61504609,3711.2,3711.1,2.69461]
[1732953088158,0.61504609,3711.2,3711.1,4.19991931]
[1732953089569,0.52504609,3711.2,3711.1,4.19991931]
[1732953091325,1.07504609,3711.2,3711.1,0.05500931]
[1732953091807,1.32711354,3711.2,3711.1,0.05500931]
[1732953092401,4.02165354,3711.2,3711.1,0.05500931]
[1732953092608,5.55875354,3711.2,3711.1,0.05500931]
[1732953092813,7.36235375,3711.2,3711.1,0.05500931]
[1732953092970,3.34461,3711.1,3711.0,36.5472574]
[1732953093170,11.50490172,3711.1,3711.0,32.42408776]
[1732953093505,11.06416312,3711.1,3711.0,25.79123882]
[1732953093708,11.06416312,3711.1,3711.0,17.79143882]
[1732953093882,11.06416312,3711.1,3711.0,13.79153882]
[1732953094383,11.06416312,3711.1,3711.0,10.07849931]
[1732953094384,11.62807549,3711.1,3711.0,10.07849931]
[1732953094605,20.7846237,3711.1,3711.0,8.21451017]
[1732953095207,20.7846237,3711.1,3708.8,1.5018]
[1732953095208,2.0871,3709.6,3708.8,1.5018]
[1732953095512,0.55,3709.3,3708.9,0.04270978]
[1732953095686,0.55,3709.3,3708.8,1.5018]
[1732953095886,0.55,3709.3,3708.9,0.04270312]
[1732953096090,0.55,3709.3,3708.8,1.5018]
[1732953096394,0.55,3709.3,3708.9,0.04270312]
[1732953096823,0.55,3709.5,3708.8,1.5018]
[1732953097000,0.55,3709.5,3709.0,0.04269796]
[1732953097398,0.55,3709.5,3708.8,1.5018]
[1732953097734,3.24583,3709.5,3708.8,1.5018]
[1732953097933,3.24583,3709.5,3708.9,0.04307804]
[1732953098650,0.55,3709.3,3708.9,0.04307804]
[1732953099140,0.55,3709.3,3709.0,0.04307541]
[1732953099346,0.55,3709.3,3708.8,1.5018]
[1732953099544,0.55,3709.3,3708.9,0.04319987]
[1732953099704,0.55,3709.3,3708.8,1.5018]
[1732953099905,0.55,3709.3,3708.9,0.04319987]
[1732953100123,0.55,3709.3,3708.8,4.19808]
[1732953100333,0.55,3709.3,3708.9,0.04319987]
[1732953100541,0.55,3709.3,3708.8,4.19808]
[1732953100743,0.55,3709.6,3708.9,0.04319789]
[1732953101603,0.55,3709.4,3708.9,0.04319789]
[1732953102003,0.55,3709.4,3708.8,1.5018]
[1732953102241,0.55,3709.4,3709.0,0.04319913]
[1732953102452,0.55,3709.4,3708.9,0.04320428]
[1732953102617,0.55,3709.4,3709.1,0.04319397]
[1732953102813,0.55,3709.4,3709.0,0.04319913]
[1732953103006,0.55,3709.4,3709.2,0.04317924]
[1732953103233,0.55,3709.4,3709.1,0.04318439]
[1732953103541,0.55,3709.4,3709.2,0.04317924]
[1732953103748,0.55,3709.4,3708.8,1.5018]
[1732953103936,0.55,3709.4,3708.9,0.04319578]
[1732953104139,0.55,3709.4,3708.8,1.5018]
[1732953104372,0.55,3709.4,3709.0,0.04320019]
[1732953104669,0.55,3709.4,3709.1,0.04319504]
[1732953104873,0.55,3709.4,3708.9,2.69621]
[1732953105047,0.55,3709.4,3709.0,0.04320019]
[1732953105448,0.02044054,3710.0,3709.0,0.04320019]
[1732953105449,0.55,3709.7,3709.0,0.04320019]
[1732953105877,0.55,3709.5,3708.8,4.19806]
[1732953106244,0.55,3709.5,3709.0,2.69613]
[1732953106446,0.55,3709.5,3709.1,0.04319504]
[1732953106646,0.55,3709.5,3708.4,2.69652]
[1732953106847,1.5371,3710.1,3709.3,2.6959]
[1732953107155,1.5371,3710.1,3709.4,2.73898999]
[1732953107556,0.53910566,3710.2,3709.7,2.69562]
[1732953107782,0.53910566,3710.2,3709.5,2.69578]
[1732953107783,0.02044054,3710.1,3709.8,0.04312489]
[1732953108016,0.53910566,3710.2,3709.8,0.04312489]
[1732953108152,0.53910566,3710.2,3709.6,2.69565]
[1732953108353,0.53910566,3710.2,3709.6,2.6957]
[1732953108683,0.53910566,3710.2,3709.7,0.04312854]
[1732953108992,0.5595462,3710.2,3709.3,3.0]
[1732953109150,0.5595462,3710.2,3709.8,0.04308077]
[1732953109354,0.5595462,3710.2,3709.5,2.69577]
[1732953109584,0.55,3710.1,3709.6,0.04302158]
[1732953109885,0.57044054,3710.1,3709.6,0.04302158]
[1732953110260,0.57044054,3710.1,3709.6,2.6957]
[1732953110471,0.55,3710.1,3709.6,2.6957]
[1732953110670,0.55,3710.1,3709.7,0.04301642]
[1732953110873,0.55,3710.1,3709.8,1.3899]
[1732953111086,0.55,3710.1,3709.9,0.04299654]
[1732953114307,0.55,3710.1,3709.5,2.69577]
[1732953114496,0.55,3710.1,3710.0,0.04286258]
[1732953114667,0.55,3710.1,3709.5,2.69577]
[1732953114854,0.55,3710.1,3709.6,0.0428875]
[1732953115719,0.55,3710.1,3709.6,0.0428875]
[1732953116326,0.423,3710.1,3709.6,0.0428875]
[1732953116820,0.44344054,3710.1,3709.6,0.0428875]
[1732953116984,1.4791,3710.0,3709.6,0.0428875]
[1732953117184,1.4791,3710.0,3709.0,7.08597]
[1732953117185,0.02044054,3709.9,3709.0,4.08597]
[1732953117407,1.4791,3710.0,3709.7,0.04289578]
[1732953117609,1.4791,3710.0,3709.3,2.69592]
[1732953117815,1.4791,3710.0,3709.8,0.04288105]
[1732953118120,1.4791,3710.0,3709.3,2.69592]
[1732953118329,0.55,3709.9,3709.3,2.69592]
[1732953119625,0.57044054,3709.9,3709.2,2.69595]
[1732953120424,0.02044054,3709.8,3709.2,2.69595]
[1732953120610,0.02044054,3709.8,3709.0,4.08604]
[1732953120801,0.55,3709.6,3708.9,2.6962]
[1732953121002,0.8017349,3709.6,3708.9,2.6962]
[1732953121504,0.2517349,3709.5,3708.9,2.6962]
[1732953121863,0.55,3709.3,3708.9,2.6962]
[1732953122134,0.80200488,3709.6,3708.9,2.69618]
[1732953122291,0.55,3709.4,3708.9,2.69618]
[1732953122491,0.55,3709.6,3708.9,2.69618]
[1732953122691,0.55,3709.4,3708.9,2.69618]
[1732953123416,0.55,3709.6,3708.9,2.69618]
[1732953123591,0.55,3709.4,3708.9,2.69618]
[1732953123785,0.25218232,3709.3,3708.9,2.69618]
[1732953124109,0.55,3709.4,3708.9,2.69618]
[1732953124315,0.55,3709.6,3708.9,2.69618]
[1732953124527,0.55,3709.4,3708.9,2.69618]
[1732953125423,0.55,3709.6,3708.9,2.69618]
[1732953125630,0.55,3709.4,3708.9,2.69618]
[1732953125928,0.55,3709.6,3709.0,2.69613]
[1732953126084,0.2521691,3709.5,3709.1,0.04309969]
[1732953126287,0.55,3709.6,3709.3,2.69588]
[1732953126488,0.5290794,3709.8,3709.7,2.69563]
[1732953126723,0.25215091,3710.1,3709.8,2.69554]
[1732953127024,0.64182596,3710.3,3710.0,2.6954]
[1732953127225,0.25213898,3710.2,3710.0,4.1955]
[1732953127428,0.64182596,3710.3,3710.1,2.73838813]
[1732953127786,0.64182596,3710.3,3710.1,0.04304813]
[1732953128602,0.64182596,3710.3,3710.2,2.69527]
[1732953128935,0.64182596,3710.3,3710.2,0.04287301]
[1732953129226,0.55,3710.2,3709.8,2.69555]
[1732953129723,0.55,3710.2,3709.9,0.04288847]
[1732953129915,0.55,3710.2,3709.6,4.1958]
[1732953130235,0.55,3710.2,3709.7,0.04289879]
[1732953130592,0.55,3710.2,3709.6,4.1958]
[1732953130843,0.55,3710.2,3709.7,2.69562]
[1732953130991,0.55,3710.2,3709.7,2.73851879]
[1732953133313,0.55,3710.0,3709.7,2.73851879]
[1732953133708,0.55,3710.2,3709.7,2.73851879]
[1732953133889,0.55,3710.0,3709.7,2.73851879]
[1732953134094,0.55,3710.2,3709.7,2.73851879]
[1732953134393,0.55,3710.0,3709.7,0.04289879]
[1732953134593,0.55,3710.0,3709.1,3.0]
[1732953134594,0.55,3710.0,3709.1,4.5352]
[1732953134789,1.4701,3709.8,3709.2,0.04282327]
[1732953135033,0.55,3709.7,3709.1,2.69606]
[1732953135338,0.55,3709.7,3709.2,0.04282327]
[1732953135932,0.55,3709.7,3709.2,2.73877327]
[1732953137634,0.25220438,3709.6,3709.2,0.04282327]
[1732953137805,0.55,3709.5,3709.2,0.04282327]
[1732953138139,0.55,3709.7,3709.3,0.04283848]
[1732953138356,0.55,3709.5,3709.1,2.69606]
[1732953138550,0.55,3709.5,3709.2,0.04284363]
[1732953138850,0.55,3709.7,3709.2,2.73877363]
[1732953139012,0.55,3709.7,3709.3,2.69589]
[1732953139211,0.55,3710.0,3709.5,2.69575]
[1732953139414,0.25218783,3709.9,3709.5,2.69575]
[1732953139659,1.87683105,3710.2,3709.6,2.73861378]
[1732953139858,0.25217708,3710.1,3709.9,2.69544]
[1732953140154,0.2521729,3710.0,3709.9,2.69544]
[1732953140366,0.64182596,3710.3,3709.7,2.69562]
[1732953140666,0.25217322,3710.2,3710.0,2.362643]
[1732953140828,0.25217322,3710.1,3710.0,2.362643]
[1732953141615,0.64182596,3710.3,3710.0,2.362643]
[1732953141810,0.55,3710.2,3710.0,2.362643]
[1732953142128,0.25217791,3710.1,3710.0,2.362643]
[1732953142971,0.25217791,3710.1,3709.8,2.69551]
[1732953143122,0.02044054,3710.0,3709.8,2.69551]
[1732953143320,0.02044054,3710.0,3709.5,2.69576]
[1732953143550,0.55,3710.2,3709.4,1.4804]
[1732953143738,0.2521859,3710.1,3709.8,2.6955]
[1732953143936,0.55,3710.2,3709.8,2.6955]